fUST/lending_fUST_20240815
["ID","MTS","AMOUNT","RATE_DAILY","PERIOD"]
[334946397,1723666243437,-500.0,0.00013698,2]
[334946399,1723666243446,-500.0,0.00013698,2]
[334946401,1723666243455,-500.0,0.00013698,2]
[334946403,1723666243464,-500.0,0.00013698,2]
[334946405,1723666243473,-649.45,0.00013698,2]
[334946407,1723666243482,-500.0,0.00013698,2]
[334946409,1723666243492,-500.0,0.00013698,2]
[334946411,1723666243502,-648.28,0.00013698,2]
[334946413,1723666243512,-500.0,0.00013698,2]
[334946415,1723666243522,-500.0,0.00013698,2]
[334946417,1723666243531,-500.0,0.00013698,2]
[334946419,1723666243540,-500.0,0.00013698,2]
[334946421,1723666243551,-500.0,0.00013698,2]
[334946423,1723666243560,-500.0,0.00013698,2]
[334946425,1723666243569,-500.0,0.00013698,2]
[334946427,1723666243578,-506.32587022,0.00013698,2]
[334946429,1723666243588,-504.37159975,0.00013698,2]
[334946431,1723666243598,-500.0,0.00013698,2]
[334946433,1723666243607,-500.0,0.00013698,2]
[334946435,1723666243617,-501.77,0.00013698,2]
[334946438,1723666243627,-507.61307672,0.00013698,2]
[334946440,1723666243637,-500.0,0.00013698,2]
[334946442,1723666243647,-500.0,0.00013698,2]
[334946444,1723666243656,-500.0,0.00013698,2]
[334946446,1723666243666,-609.17,0.00013698,2]
[334946447,1723666243675,-500.0,0.00013698,2]
[334946449,1723666243684,-500.0,0.00013698,2]
[334946451,1723666243693,-500.0,0.00013698,2]
[334946453,1723666243702,-500.0,0.00013698,2]
[334946455,1723666243712,-500.0,0.00013698,2]
[334946457,1723666243721,-559.71,0.00013698,2]
[334946460,1723666243731,-500.0,0.00013698,2]
[334946462,1723666243740,-500.0,0.00013698,2]
[334946463,1723666243750,-500.0,0.00013698,2]
[334946465,1723666243759,-502.55692101,0.00013698,2]
[334946469,1723666243769,-500.0,0.00013698,2]
[334946471,1723666243777,-502.26505713,0.00013698,2]
[334946474,1723666243787,-500.0,0.00013698,2]
[334946477,1723666243797,-560.38,0.00013698,2]
[334946480,1723666243806,-500.0,0.00013698,2]
[334946482,1723666243815,-500.0,0.00013698,2]
[334946485,1723666243824,-500.0,0.00013698,2]
[334946487,1723666243833,-500.0,0.00013698,2]
[334946489,1723666243842,-615.41,0.00013698,2]
[334946491,1723666243851,-511.06656472,0.00013698,2]
[334946493,1723666243860,-247.88697582,0.00013698,2]
[334946495,1723666243870,-500.0,0.00013698,2]
[334946497,1723666243880,-500.0,0.00013698,2]
[334946500,1723666243891,-500.0,0.00013698,2]
[334946502,1723666243900,-500.0,0.00013698,2]
[334946504,1723666243909,-511.82518457,0.00013698,2]
[334946506,1723666243918,-500.0,0.00013698,2]
[334946507,1723666243928,-506.45911919,0.00013698,2]
[334946509,1723666243938,-500.0,0.00013698,2]
[334946510,1723666243948,-500.0,0.00013698,2]
[334946512,1723666243957,-500.0,0.00013698,2]
[334946513,1723666243967,-500.0,0.00013698,2]
[334946515,1723666243976,-500.0,0.00013698,2]
[334946516,1723666243985,-500.0,0.00013698,2]
[334946518,1723666243995,-500.0,0.00013698,2]
[334946520,1723666244004,-500.0,0.00013698,2]
[334946521,1723666244014,-500.0,0.00013698,2]
[334946523,1723666244023,-500.0,0.00013698,2]
[334946524,1723666244033,-596.12,0.00013698,2]
[334946526,1723666244042,-497.35053325,0.00013698,2]
[334946527,1723666244051,-500.0,0.00013698,2]
[334946529,1723666244061,-504.72300314,0.00013698,2]
[334946531,1723666244071,-500.0,0.00013698,2]
[334946532,1723666244081,-506.79907527,0.00013698,2]
[334946534,1723666244090,-500.0,0.00013698,2]
[334946535,1723666244099,-780.1,0.00013698,2]
[334946537,1723666244108,-500.0,0.00013698,2]
[334946539,1723666244118,-500.0,0.00013698,2]
[334946540,1723666244127,-504.42285475,0.00013698,2]
[334946542,1723666244136,-500.0,0.00013698,2]
[334946543,1723666244145,-500.0,0.00013698,2]
[334946544,1723666244154,-500.0,0.00013698,2]
[334946546,1723666244163,-500.0,0.00013698,2]
[334946547,1723666244173,-500.0,0.00013698,2]
[334946549,1723666244183,-500.0,0.00013698,2]
[334946550,1723666244192,-500.0,0.00013698,2]
[334946552,1723666244201,-653.98,0.00013698,2]
[334946553,1723666244210,-500.0,0.00013698,2]
[334946555,1723666244220,-500.0,0.00013698,2]
[334946557,1723666244230,-500.0,0.00013698,2]
[334946558,1723666244239,-546.27050067,0.00013698,2]
[334946560,1723666244248,-500.0,0.00013698,2]
[334946562,1723666244258,-500.0,0.00013698,2]
[334946563,1723666244267,-500.0,0.00013698,2]
[334946565,1723666244276,-175.14000595,0.00013698,2]
[334946567,1723666244286,-653.26,0.00013698,2]
[334946568,1723666244295,-500.0,0.00013698,2]
[334946570,1723666244307,-500.0,0.00013698,2]
[334946572,1723666244317,-683.56,0.00013698,2]
[334946573,1723666244326,-500.0,0.00013698,2]
[334946575,1723666244335,-500.0,0.00013698,2]
[334946577,1723666244345,-500.0,0.00013698,2]
[334946578,1723666244354,-626.63,0.00013698,2]
[334946580,1723666244365,-500.0,0.00013698,2]
[334946582,1723666244374,-500.0,0.00013698,2]
[334946583,1723666244384,-500.0,0.00013698,2]
[334946585,1723666244394,-509.43081434,0.00013698,2]
[334946587,1723666244404,-500.0,0.00013698,2]
[334946588,1723666244413,-556.02,0.00013698,2]
[334946590,1723666244422,-500.0,0.00013698,2]
[334946591,1723666244431,-500.0,0.00013698,2]
[334946593,1723666244440,-356.48460807,0.00013698,2]
[334946595,1723666244449,-500.0,0.00013698,2]
[334946596,1723666244458,-500.0,0.00013698,2]
[334946598,1723666244467,-500.0,0.00013698,2]
[334946600,1723666244477,-899.06,0.00013698,2]
[334946601,1723666244486,-500.0,0.00013698,2]
[334946603,1723666244495,-500.0,0.00013698,2]
[334946604,1723666244504,-678.85,0.00013698,2]
[334946606,1723666244514,-500.0,0.00013698,2]
[334946608,1723666244524,-503.23,0.00013698,2]
[334946609,1723666244533,-502.41947006,0.00013698,2]
[334946611,1723666244542,-547.45,0.00013698,2]
[334946613,1723666244552,-523.15514986,0.00013698,2]
[334946622,1723666244673,-500.0,0.00013698,2]
[334946624,1723666244683,-500.0,0.00013698,2]
[334946625,1723666244693,-500.0,0.00013698,2]
[334946627,1723666244702,-500.0,0.00013698,2]
[334946629,1723666244711,-500.0,0.00013698,2]
[334946630,1723666244720,-500.0,0.00013698,2]
[334946632,1723666244730,-550.38,0.00013698,2]
[334946634,1723666244739,-500.0,0.00013698,2]
[334946636,1723666244748,-301.88230633,0.00013698,2]
[334946638,1723666244759,-500.0,0.00013698,2]
[334946640,1723666244769,-500.0,0.00013698,2]
[334946642,1723666244778,-805.52,0.00013698,2]
[334946644,1723666244788,-552.57,0.00013698,2]
[334946646,1723666244797,-500.0,0.00013698,2]
[334946648,1723666244807,-594.27,0.00013698,2]
[334946650,1723666244816,-500.0,0.00013698,2]
[334946651,1723666244826,-500.0,0.00013698,2]
[334946652,1723666244835,-500.0,0.00013698,2]
[334946653,1723666244844,-534.85,0.00013698,2]
[334946654,1723666244853,-500.0,0.00013698,2]
[334946655,1723666244862,-500.0,0.00013698,2]
[334946656,1723666244872,-500.0,0.00013698,2]
[334946657,1723666244881,-500.0,0.00013698,2]
[334946658,1723666244890,-500.0,0.00013698,2]
[334946659,1723666244899,-500.0,0.00013698,2]
[334946660,1723666244908,-500.0,0.00013698,2]
[334946661,1723666244918,-500.0,0.00013698,2]
[334946662,1723666244927,-500.0,0.00013698,2]
[334946663,1723666244938,-500.0,0.00013698,2]
[334946664,1723666244948,-248.4684193,0.00013698,2]
[334946665,1723666244959,-565.72751461,0.00013698,2]
[334946666,1723666244969,-500.0,0.00013698,2]
[334946667,1723666244981,-500.0,0.00013698,2]
[334946668,1723666244991,-500.0,0.00013698,2]
[334946669,1723666245001,-500.0,0.00013698,2]
[334946671,1723666245012,-500.0,0.00013698,2]
[334946672,1723666245022,-683.87,0.00013698,2]
[334946673,1723666245031,-563.9,0.00013698,2]
[334946674,1723666245040,-528.8,0.00013698,2]
[334946676,1723666245050,-500.0,0.00013698,2]
[334946678,1723666245059,-500.0,0.00013698,2]
[334946680,1723666245068,-500.0,0.00013698,2]
[334946682,1723666245077,-780.37,0.00013698,2]
[334946684,1723666245086,-500.0,0.00013698,2]
[334946686,1723666245096,-500.0,0.00013698,2]
[334946688,1723666245106,-721.18,0.00013698,2]
[334946690,1723666245115,-562.64,0.00013698,2]
[334946692,1723666245125,-500.0,0.00013698,2]
[334946694,1723666245134,-500.0,0.00013698,2]
[334946696,1723666245145,-500.0,0.00013698,2]
[334946698,1723666245154,-500.0,0.00013698,2]
[334946700,1723666245163,-500.0,0.00013698,2]
[334946702,1723666245172,-501.80801126,0.00013698,2]
[334946704,1723666245181,-500.0,0.00013698,2]
[334946706,1723666245191,-500.0,0.00013698,2]
[334946708,1723666245200,-500.0,0.00013698,2]
[334946710,1723666245210,-547.6,0.00013698,2]
[334946712,1723666245219,-500.0,0.00013698,2]
[334946715,1723666245228,-500.0,0.00013698,2]
[334946717,1723666245238,-500.0,0.00013698,2]
[334946719,1723666245247,-509.59,0.00013698,2]
[334946721,1723666245256,-527.73,0.00013698,2]
[334946723,1723666245265,-500.0,0.00013698,2]
[334946725,1723666245274,-500.0,0.00013698,2]
[334946727,1723666245283,-500.0,0.00013698,2]
[334946729,1723666245292,-500.0,0.00013698,2]
[334946731,1723666245305,-500.0,0.00013698,2]
[334946733,1723666245314,-500.0,0.00013698,2]
[334946735,1723666245324,-500.0,0.00013698,2]
[334946737,1723666245334,-523.82,0.00013698,2]
[334946739,1723666245343,-500.0,0.00013698,2]
[334946741,1723666245352,-500.0,0.00013698,2]
[334946743,1723666245361,-500.0,0.00013698,2]
[334946745,1723666245370,-500.0,0.00013698,2]
[334946747,1723666245380,-500.0,0.00013698,2]
[334946749,1723666245390,-564.37,0.00013698,2]
[334946751,1723666245399,-500.0,0.00013698,2]
[334946753,1723666245409,-500.0,0.00013698,2]
[334946755,1723666245421,-839.34,0.00013698,2]
[334946758,1723666245433,-500.0,0.00013698,2]
[334946760,1723666245444,-500.0,0.00013698,2]
[334946762,1723666245455,-500.0,0.00013698,2]
[334946764,1723666245465,-500.0,0.00013698,2]
[334946766,1723666245474,-500.0,0.00013698,2]
[334946768,1723666245484,-500.0,0.00013698,2]
[334946770,1723666245493,-500.0,0.00013698,2]
[334946772,1723666245504,-500.0,0.00013698,2]
[334946775,1723666245515,-617.42,0.00013698,2]
[334946777,1723666245527,-500.0,0.00013698,2]
[334946779,1723666245537,-500.0,0.00013698,2]
[334946781,1723666245548,-500.0,0.00013698,2]
[334946783,1723666245559,-754.29,0.00013698,2]
[334946785,1723666245568,-500.0,0.00013698,2]
[334946787,1723666245580,-500.0,0.00013698,2]
[334946789,1723666245589,-500.0,0.00013698,2]
[334946792,1723666245599,-674.09,0.00013698,2]
[334946794,1723666245610,-1148.75,0.00013698,2]
[334946796,1723666245620,-500.0,0.00013698,2]
[334946797,1723666245630,-647.65,0.00013698,2]
[334946799,1723666245640,-500.0,0.00013698,2]
[334946801,1723666245649,-665.51,0.00013698,2]
[334946803,1723666245658,-500.0,0.00013698,2]
[334946806,1723666245669,-500.0,0.00013698,2]
[334946808,1723666245678,-521.65,0.00013698,2]
[334946810,1723666245688,-500.0,0.00013698,2]
[334946812,1723666245697,-772.76,0.00013698,2]
[334946814,1723666245706,-814.94,0.00013698,2]
[334946816,1723666245716,-639.13,0.00013698,2]
[334946818,1723666245725,-1243.52,0.00013698,2]
[334946820,1723666245735,-500.0,0.00013698,2]
[334946822,1723666245744,-500.0,0.00013698,2]
[334946824,1723666245754,-571.29,0.00013698,2]
[334946826,1723666245763,-4778.58,0.00013698,2]
[334946828,1723666245772,-500.0,0.00013698,2]
[334946830,1723666245781,-500.0,0.00013698,2]
[334946832,1723666245792,-500.0,0.00013698,2]
[334946834,1723666245801,-500.0,0.00013698,2]
[334946836,1723666245810,-643.47800314,0.00013698,2]
[334946838,1723666245819,-738.68,0.00013698,2]
[334946840,1723666245830,-500.0,0.00013698,2]
[334946842,1723666245840,-846.36,0.00013698,2]
[334946844,1723666245850,-684.85,0.00013698,2]
[334946846,1723666245861,-500.0,0.00013698,2]
[334946849,1723666245871,-500.0,0.00013698,2]
[334946851,1723666245880,-500.0,0.00013698,2]
[334946853,1723666245890,-510.93,0.00013698,2]
[334946855,1723666245900,-500.0,0.00013698,2]
[334946857,1723666245910,-454.11369897,0.00013698,2]
[334946859,1723666245920,-500.0,0.00013698,2]
[334946861,1723666245930,-500.0,0.00013698,2]
[334946863,1723666245940,-500.0,0.00013698,2]
[334946865,1723666245950,-500.0,0.00013698,2]
[334946867,1723666245959,-500.0,0.00013698,2]
[334946869,1723666245968,-500.0,0.00013698,2]
[334946871,1723666245980,-500.0,0.00013698,2]
[334946874,1723666245991,-696.84,0.00013698,2]
[334946876,1723666246002,-1019.5,0.00013698,2]
[334946878,1723666246013,-500.0,0.00013698,2]
[334946880,1723666246024,-500.0,0.00013698,2]
[334946883,1723666246036,-500.0,0.00013698,2]
[334946885,1723666246045,-500.0,0.00013698,2]
[334946887,1723666246055,-500.0,0.00013698,2]
[334946889,1723666246064,-523.84,0.00013698,2]
[334946891,1723666246073,-500.0,0.00013698,2]
[334946893,1723666246083,-500.0,0.00013698,2]
[334946895,1723666246092,-500.0,0.00013698,2]
[334946897,1723666246101,-1825.16,0.00013698,2]
[334946899,1723666246110,-500.0,0.00013698,2]
[334946901,1723666246119,-1825.16,0.00013698,2]
[334946903,1723666246129,-1825.16,0.00013698,2]
[334946906,1723666246138,-1825.16,0.00013698,2]
[334946907,1723666246147,-1825.16,0.00013698,2]
[334946910,1723666246156,-500.0,0.00013698,2]
[334946913,1723666246166,-1825.16,0.00013698,2]
[334946916,1723666246175,-1825.16,0.00013698,2]
[334946919,1723666246184,-500.0,0.00013698,2]
[334946921,1723666246193,-1825.16,0.00013698,2]
[334946923,1723666246202,-500.0,0.00013698,2]
[334946925,1723666246211,-500.0,0.00013698,2]
[334946927,1723666246221,-500.0,0.00013698,2]
[334946930,1723666246230,-835.35,0.00013698,2]
[334946931,1723666246239,-1653.9,0.00013698,2]
[334946934,1723666246249,-500.0,0.00013698,2]
[334946935,1723666246259,-500.0,0.00013698,2]
[334946938,1723666246268,-500.0,0.00013698,2]
[334946941,1723666246277,-500.0,0.00013698,2]
[334946944,1723666246286,-725.48,0.00013698,2]
[334946947,1723666246296,-500.0,0.00013698,2]
[334946949,1723666246309,-500.0,0.00013698,2]
[334946951,1723666246318,-890.82,0.00013698,2]
[334946953,1723666246327,-500.0,0.00013698,2]
[334946955,1723666246337,-821.88,0.00013698,2]
[334946957,1723666246347,-500.0,0.00013698,2]
[334946959,1723666246356,-866.48,0.00013698,2]
[334946961,1723666246365,-863.14,0.00013698,2]
[334946963,1723666246374,-500.0,0.00013698,2]
[334946965,1723666246384,-513.8,0.00013698,2]
[334946967,1723666246393,-748.64,0.00013698,2]
[334946970,1723666246402,-500.0,0.00013698,2]
[334946972,1723666246411,-500.0,0.00013698,2]
[334946974,1723666246420,-500.0,0.00013698,2]
[334946976,1723666246429,-500.0,0.00013698,2]
[334946978,1723666246439,-500.0,0.00013698,2]
[334946980,1723666246448,-500.0,0.00013698,2]
[334946982,1723666246457,-500.0,0.00013698,2]
[334946985,1723666246467,-500.0,0.00013698,2]
[334946987,1723666246476,-630.68,0.00013698,2]
[334946989,1723666246485,-507.5331019,0.00013698,2]
[334946991,1723666246493,-500.0,0.00013698,2]
[334946993,1723666246502,-500.0,0.00013698,2]
[334946996,1723666246527,-500.0,0.00013698,2]
[334946998,1723666246536,-500.0,0.00013698,2]
[334947000,1723666246545,-1562.09,0.00013698,2]
[334947002,1723666246554,-500.0,0.00013698,2]
[334947004,1723666246563,-516.4208336,0.00013698,2]
[334947006,1723666246574,-974.3,0.00013698,2]
[334947008,1723666246583,-654.69,0.00013698,2]
[334947010,1723666246592,-500.0,0.00013698,2]
[334947012,1723666246601,-500.0,0.00013698,2]
[334947014,1723666246610,-500.0,0.00013698,2]
[334947016,1723666246620,-564.72,0.00013698,2]
[334947018,1723666246630,-500.0,0.00013698,2]
[334947020,1723666246639,-526.43,0.00013698,2]
[334947022,1723666246648,-500.0,0.00013698,2]
[334947024,1723666246657,-500.0,0.00013698,2]
[334947026,1723666246667,-837.5,0.00013698,2]
[334947028,1723666246676,-500.0,0.00013698,2]
[334947030,1723666246685,-596.66,0.00013698,2]
[334947032,1723666246696,-500.0,0.00013698,2]
[334947034,1723666246705,-500.77,0.00013698,2]
[334947036,1723666246715,-2487.92,0.00013698,2]
[334947038,1723666246724,-808.13,0.00013698,2]
[334947040,1723666246734,-500.0,0.00013698,2]
[334947042,1723666246743,-500.0,0.00013698,2]
[334947044,1723666246752,-500.0,0.00013698,2]
[334947046,1723666246762,-756.51,0.00013698,2]
[334947048,1723666246771,-500.0,0.00013698,2]
[334947050,1723666246780,-500.0,0.00013698,2]
[334947052,1723666246789,-500.0,0.00013698,2]
[334947054,1723666246799,-500.0,0.00013698,2]
[334947056,1723666246808,-960.0,0.00013698,2]
[334947058,1723666246818,-1324.2,0.00013698,2]
[334947061,1723666246828,-594.63,0.00013698,2]
[334947063,1723666246838,-500.0,0.00013698,2]
[334947065,1723666246848,-543.14,0.00013698,2]
[334947067,1723666246857,-1581.43,0.00013698,2]
[334947069,1723666246866,-500.0,0.00013698,2]
[334947071,1723666246875,-651.22,0.00013698,2]
[334947073,1723666246885,-500.0,0.00013698,2]
[334947075,1723666246895,-500.0,0.00013698,2]
[334947077,1723666246904,-500.0,0.00013698,2]
[334947079,1723666246913,-704.7,0.00013698,2]
[334947081,1723666246922,-500.0,0.00013698,2]
[334947083,1723666246932,-500.0,0.00013698,2]
[334947085,1723666246941,-621.38,0.00013698,2]
[334947087,1723666246951,-244.94821869,0.00013698,2]
[334947089,1723666246961,-500.0,0.00013698,2]
[334947091,1723666246970,-500.0,0.00013698,2]
[334947114,1723666247097,-239.31089673,0.00013698,2]
[334947181,1723666247834,157.699688,0.00012655,2]
[334947187,1723666247880,157.699688,0.00012702,2]
[334947193,1723666247920,157.699688,0.00012749,2]
[334947198,1723666247958,157.699688,0.00012796,2]
[334947894,1723666317686,410.70557422,0.00012796,2]
[334947895,1723666320849,617.46054567,0.00012796,2]
[334947898,1723667158154,-1665.69646255,0.00012356,2]
[334947900,1723667359129,-282.69,0.00010959,2]
[334947901,1723667359151,-235.57,0.00010959,2]
[334947902,1723667359172,-196.31,0.00010959,2]
[334947903,1723667359194,-163.59,0.00010959,2]
[334947904,1723667359215,-818.0,0.00010959,2]
[334947905,1723667359237,-158.446937,0.00011834,2]
[334947906,1723667359258,-158.446937,0.0001189,2]
[334947907,1723667359279,-158.446937,0.00011946,2]
[334947908,1723667359301,-158.446937,0.00012002,2]
[334947909,1723667359322,-158.446937,0.00012059,2]
[334947910,1723667359343,-158.446937,0.00012115,2]
[334947911,1723667359364,-158.446937,0.00012171,2]
[334947912,1723667359385,-158.446937,0.00012227,2]
[334947913,1723667359406,-158.446937,0.00012283,2]
[334947914,1723667359426,-158.446937,0.00012339,2]
[334947915,1723667359447,-150.012294,0.00012356,2]
[334947918,1723667368146,-1520.90997144,0.00012356,2]
[334947919,1723667368170,-158.446937,0.00012395,2]
[334947920,1723667368192,-158.446937,0.00012451,2]
[334947921,1723667368213,-300.0,0.0001255,2]
[334947922,1723667368234,-300.0,0.0001255,2]
[334947923,1723667368255,-7008.86868586,0.00012551,2]
[334947924,1723667371158,-2652.8698,0.00012782,2]
[334947934,1723667431797,-9652.40516915,0.00012782,2]
[334947935,1723667431807,-2164.74871652,0.00012971,2]
[334947936,1723667431817,-601.5809545,0.00012985,2]
[334947937,1723667431827,-665.1114012,0.00012985,2]
[334947938,1723667431836,-463.438676,0.00012986,2]
[334947939,1723667431846,-1867.86856682,0.00012989,2]
[334947940,1723667431855,-645.96893289,0.00013478,2]
[334947941,1723667431865,-1612.28857669,0.00013497,2]
[334947942,1723667431875,-2710.71989764,0.00013497,2]
[334947943,1723667431885,-3986.98525666,0.00013588,2]
[334947944,1723667431894,-500.0,0.00013595,2]
[334947945,1723667431904,-504.80821134,0.00013597,2]
[334947946,1723667431914,-193.42012825,0.00013598,2]
[334947947,1723667431923,-154.91162192,0.00013666,2]
[334947948,1723667431933,-193.42012825,0.00013667,2]
[334947949,1723667431942,-309.33495762,0.00013672,2]
[334947950,1723667431951,-500.0,0.00013687,2]
[334947951,1723667431960,-10044.54027248,0.00013688,2]
[334947988,1723667439915,-3876.96110062,0.00012999,2]
[334947989,1723667439925,-45397.80181043,0.00013688,2]
[334947990,1723667439934,-193.46,0.00013688,2]
[334947991,1723667439943,-30602.9324428,0.00013688,2]
[334947992,1723667439954,-5100.48874046,0.00013689,2]
[334947993,1723667439964,-5100.48874046,0.00013689,2]
[334947994,1723667439975,-6182.4126702,0.00013698,2]
[334947996,1723667439985,-500.0,0.00013698,2]
[334947998,1723667439995,-500.0,0.00013698,2]
[334948000,1723667440005,-500.0,0.00013698,2]
[334948002,1723667440015,-500.0,0.00013698,2]
[334948004,1723667440025,-500.0,0.00013698,2]
[334948005,1723667440036,-500.0,0.00013698,2]
[334948006,1723667440046,-500.0,0.00013698,2]
[334948007,1723667440057,-500.0,0.00013698,2]
[334948008,1723667440067,-643.22,0.00013698,2]
[334948009,1723667440077,-500.0,0.00013698,2]
[334948010,1723667440088,-500.0,0.00013698,2]
[334948011,1723667440097,-562.01179099,0.00013698,2]
[334948012,1723667440108,-500.0,0.00013698,2]
[334948013,1723667440118,-500.0,0.00013698,2]
[334948014,1723667440128,-500.0,0.00013698,2]
[334948015,1723667440137,-500.0,0.00013698,2]
[334948016,1723667440147,-500.0,0.00013698,2]
[334948017,1723667440157,-604.62,0.00013698,2]
[334948018,1723667440166,-560.23,0.00013698,2]
[334948019,1723667440176,-644.70539341,0.00013698,2]
[334948020,1723667440186,-500.0,0.00013698,2]
[334948021,1723667440196,-500.0,0.00013698,2]
[334948022,1723667440205,-500.0,0.00013698,2]
[334948023,1723667440215,-500.0,0.00013698,2]
[334948024,1723667440224,-500.0,0.00013698,2]
[334948025,1723667440234,-500.0,0.00013698,2]
[334948026,1723667440243,-500.0,0.00013698,2]
[334948027,1723667440252,-188.58908715,0.00013698,2]
[334948028,1723667440261,-500.0,0.00013698,2]
[334948029,1723667440271,-500.0,0.00013698,2]
[334948030,1723667440280,-500.0,0.00013698,2]
[334948031,1723667440290,-500.0,0.00013698,2]
[334948032,1723667440300,-500.0,0.00013698,2]
[334948033,1723667440309,-500.0,0.00013698,2]
[334948034,1723667440318,-415.02857586,0.00013698,2]
[334948035,1723667440328,-500.0,0.00013698,2]
[334948036,1723667440337,-500.0,0.00013698,2]
[334948037,1723667440347,-500.0,0.00013698,2]
[334948038,1723667440357,-500.0,0.00013698,2]
[334948039,1723667440366,-500.0,0.00013698,2]
[334948040,1723667440376,-647.57,0.00013698,2]
[334948041,1723667440385,-500.0,0.00013698,2]
[334948042,1723667440395,-500.0,0.00013698,2]
[334948043,1723667440405,-500.0,0.00013698,2]
[334948044,1723667440414,-500.0,0.00013698,2]
[334948045,1723667440426,-500.0,0.00013698,2]
[334948046,1723667440435,-500.0,0.00013698,2]
[334948047,1723667440445,-500.0,0.00013698,2]
[334948048,1723667440455,-500.0,0.00013698,2]
[334948049,1723667440465,-590.35,0.00013698,2]
[334948050,1723667440475,-500.0,0.00013698,2]
[334948051,1723667440484,-500.0,0.00013698,2]
[334948052,1723667440494,-557.03,0.00013698,2]
[334948053,1723667440503,-500.0,0.00013698,2]
[334948054,1723667440513,-500.0,0.00013698,2]
[334948055,1723667440522,-500.0,0.00013698,2]
[334948056,1723667440532,-500.0,0.00013698,2]
[334948057,1723667440542,-500.0,0.00013698,2]
[334948058,1723667440552,-500.0,0.00013698,2]
[334948059,1723667440561,-500.0,0.00013698,2]
[334948060,1723667440571,-545.47,0.00013698,2]
[334948061,1723667440580,-500.0,0.00013698,2]
[334948062,1723667440590,-393.67496828,0.00013698,2]
[334948063,1723667440600,-533.4,0.00013698,2]
[334948064,1723667440610,-500.0,0.00013698,2]
[334948065,1723667440619,-500.0,0.00013698,2]
[334948066,1723667440628,-500.0,0.00013698,2]
[334948067,1723667440637,-500.0,0.00013698,2]
[334948068,1723667440647,-500.0,0.00013698,2]
[334948069,1723667440657,-550.38,0.00013698,2]
[334948070,1723667440666,-500.0,0.00013698,2]
[334948071,1723667440679,-500.0,0.00013698,2]
[334948072,1723667440689,-500.0,0.00013698,2]
[334948073,1723667440698,-500.0,0.00013698,2]
[334948074,1723667440711,-500.0,0.00013698,2]
[334948075,1723667440721,-550.59,0.00013698,2]
[334948076,1723667440731,-500.0,0.00013698,2]
[334948077,1723667440742,-500.0,0.00013698,2]
[334948078,1723667440752,-500.95829879,0.00013698,2]
[334948079,1723667440762,-500.0,0.00013698,2]
[334948080,1723667440772,-500.0,0.00013698,2]
[334948081,1723667440781,-185.7433927,0.00013698,2]
[334948082,1723667440793,-500.0,0.00013698,2]
[334948083,1723667440802,-500.0,0.00013698,2]
[334948084,1723667440812,-500.0,0.00013698,2]
[334948085,1723667440822,-500.0,0.00013698,2]
[334948086,1723667440832,-500.0,0.00013698,2]